[Event "SixDays Budapest IM-B June 2024"]
[Site "Budapest"]
[Date "2024.06.04"]
[Round "2.4"]
[White "Van Zyl-Rudd, Jack"]
[Black "Izsak, Gyula"]
[Result "1/2-1/2"]
[ECO "D31"]
[WhiteElo "2292"]
[BlackElo "2386"]
[Annotator "RC"]
[PlyCount "45"]
[EventDate "2024.06.01"]
[EventType "tourn"]
[EventCountry "HUN"]
[SourceTitle "playchess.com"]
[Source "ChessBase"]
[SourceQuality "1"]
[TimeControl "5400+30"]

1. d4 {[%emt 0:16:27]} d5 {[%emt 0:00:23]} 2. c4 {[%emt 0:00:05]} e6 {[%emt 0:00:04]} 3. Nc3 {[%emt 0:00:05]} a6 {[%emt 0:01:49]} 4. cxd5 {[%emt 0:00:06]} exd5 {[%emt 0:00:05]} 5. Bf4 {[%emt 0:00:05]} c6 {[%emt 0:01:49]} 6. e3 {[%emt 0:02:03]} Bd6 {[%emt 0:04:11]} 7. Bxd6 {[%emt 0:00:26]} Qxd6 {[%emt 0:00:05]} 8. Bd3 {[%emt 0:00:05]} Ne7 {[%emt 0:01:15]} 9. Qf3 {[%emt 0:02:31]} Nd7 {[%emt 0:07:45]} 10. Nge2 {[%emt 0:00:36]} Nf6 {[%emt 0:03:53]} 11. h3 {[%emt 0:14:20]} Ng6 {[%emt 0:05:19]} 12. g3 {[%emt 0:01:11]} Be6 {[%emt 0:18:06]} 13. O-O-O {[%emt 0:03:38]} O-O-O {[%emt 0:01:14]} 14. Kb1 {[%emt 0:02:10]} Kb8 {[%emt 0:00:33]} 15. Rc1 {[%emt 0:00:50]} Nd7 16. Nf4 {[%emt 0:05:18]} Nxf4 {[%emt 0:02:55]} 17. gxf4 {[%emt 0:00:15]} g6 {[%emt 0:00:44]} 18. Na4 {[%emt 0:05:53]} Ka7 {[%emt 0:04:22]} 19. Qe2 {[%emt 0:12:20]} Rhg8 {[%emt 0:03:13]} 20. Qc2 {[%emt 0:01:06]} Rc8 {[%emt 0:01:43]} 21. Ka1 {[%emt 0:05:34]} Rc7 {[%emt 0:04:35]} 22. a3 {[%emt 0:04:11]} Kb8 {[%emt 0:07:42]} 23. Ka2 {[%emt 0:07:55]} 1/2-1/2

[Event "SixDays Budapest IM-B June 2024"]
[Site "Budapest"]
[Date "2024.06.04"]
[Round "3.1"]
[White "Danilenko, Dmitriy"]
[Black "Horvath, David"]
[Result "1/2-1/2"]
[ECO "C10"]
[WhiteElo "2403"]
[BlackElo "2313"]
[Annotator "RC"]
[PlyCount "37"]
[EventDate "2024.06.01"]
[EventType "tourn"]
[EventCountry "HUN"]
[SourceTitle "playchess.com"]
[Source "ChessBase"]
[SourceQuality "1"]
[TimeControl "5400+30"]

1. e4 {[%emt 0:00:03]} e6 {[%emt 0:00:18]} 2. d4 {[%emt 0:00:12]} d5 {[%emt 0:00:05]} 3. Nc3 {[%emt 0:00:29]} dxe4 {[%emt 0:00:38]} 4. Nxe4 {[%emt 0:00:17]} Nd7 {[%emt 0:00:05]} 5. Nf3 {[%emt 0:00:28]} Ngf6 {[%emt 0:00:05]} 6. Nxf6+ {[%emt 0:00:07]} Nxf6 {[%emt 0:00:06]} 7. Be3 {[%emt 0:00:08]} Bd6 {[%emt 0:25:17]} 8. Bd3 {[%emt 0:02:58]} Nd5 {[%emt 0:07:08]} 9. Bg5 {[%emt 0:08:21]} Be7 {[%emt 0:03:49]} 10. Bd2 {[%emt 0:02:06]} Nb4 {[%emt 0:14:07]} 11. Be2 {[%emt 0:04:42]} c5 {[%emt 0:01:30]} 12. c3 {[%emt 0:42:43]} Nc6 {[%emt 0:03:13]} 13. Be3 {[%emt 0:00:47]} cxd4 {[%emt 0:04:28]} 14. Nxd4 {[%emt 0:00:07]} Bd7 {[%emt 0:02:30]} 15. Bf3 {[%emt 0:00:25]} O-O {[%emt 0:03:56]} 16. O-O {[%emt 0:03:24]} Qc8 {[%emt 0:08:35]} 17. Nxc6 {[%emt 0:14:46]} Bxc6 {[%emt 0:00:03]} 18. Bd4 {[%emt 0:00:06]} Rd8 {[%emt 0:06:47]} 19. Qe2 {[%emt 0:03:36]} 1/2-1/2

[Event "SixDays Budapest IM-B June 2024"]
[Site "Budapest"]
[Date "2024.06.04"]
[Round "3.3"]
[White "Varga, Csaba Zoltan"]
[Black "Van Zyl-Rudd, Jack"]
[Result "0-1"]
[ECO "A00"]
[WhiteElo "2157"]
[BlackElo "2292"]
[Annotator "RC"]
[PlyCount "132"]
[EventDate "2024.06.01"]
[EventType "tourn"]
[EventCountry "HUN"]
[SourceTitle "playchess.com"]
[Source "ChessBase"]
[SourceQuality "1"]
[TimeControl "5400+30"]

1. e3 {[%emt 0:01:01]} Nf6 {[%emt 0:21:36]} 2. h3 {[%emt 0:00:05]} d5 {[%emt 0:00:41]} 3. d4 {[%emt 0:00:15]} c5 {[%emt 0:00:14]} 4. Nf3 {[%emt 0:00:06]} Nc6 {[%emt 0:00:06]} 5. a3 {[%emt 0:00:35]} e6 {[%emt 0:02:38]} 6. dxc5 {[%emt 0:01:34]} Bxc5 {[%emt 0:00:02]} 7. b4 {[%emt 0:00:08]} Bd6 {[%emt 0:00:27]} 8. c4 {[%emt 0:00:07]} a5 {[%emt 0:00:47]} 9. b5 {[%emt 0:00:54]} Ne5 {[%emt 0:00:10]} 10. Nbd2 {[%emt 0:00:24]} Qc7 {[%emt 0:07:33]} 11. Bb2 {[%emt 0:00:18]} Nxc4 {[%emt 0:00:21]} 12. Bxc4 {[%emt 0:01:43]} dxc4 {[%emt 0:01:33]} 13. b6 {[%emt 0:00:37]} Qe7 {[%emt 0:01:25]} 14. Bxf6 {[%emt 0:01:31]} gxf6 {[%emt 0:00:14]} 15. Nxc4 {[%emt 0:00:06]} Bc5 {[%emt 0:00:30]} 16. O-O {[%emt 0:00:08]} O-O {[%emt 0:01:36]} 17. Nfd2 {[%emt 0:13:31]} Bd7 {[%emt 0:08:23]} 18. Ne4 {[%emt 0:00:37]} Bc6 {[%emt 0:12:21]} 19. Qf3 {[%emt 0:00:51]} Kg7 {[%emt 0:08:22]} 20. Rfc1 {[%emt 0:02:25]} Rfd8 {[%emt 0:03:30]} 21. Ne5 {[%emt 0:07:34]} fxe5 {[%emt 0:07:18]} 22. Qg3+ {[%emt 0:00:05]} Kh6 {[%emt 0:00:05]} 23. Nxc5 {[%emt 0:01:17]} Rg8 {[%emt 0:02:56]} 24. Qxe5 {[%emt 0:00:05]} Rxg2+ {[%emt 0:00:33]} 25. Kf1 {[%emt 0:00:06]} Qh4 {[%emt 0:01:17]} 26. Nd3 {[%emt 0:02:53]} Bf3 {[%emt 0:05:20]} 27. Qf4+ {[%emt 0:00:38]} Qxf4 {[%emt 0:00:02]} 28. exf4 {[%emt 0:00:07]} Rh2 {[%emt 0:00:56]} 29. Ke1 {[%emt 0:00:06]} Rd8 {[%emt 0:00:11]} 30. Kd2 {[%emt 0:00:11]} Be4 {[%emt 0:00:38]} 31. Ke3 {[%emt 0:00:32]} Bxd3 {[%emt 0:02:16]} 32. Rd1 {[%emt 0:00:05]} Rxh3+ {[%emt 0:01:31]} 33. f3 {[%emt 0:00:06]} Kg6 {[%emt 0:02:34]} 34. Rac1 {[%emt 0:00:50]} Rd5 {[%emt 0:02:05]} 35. Rxd3 {[%emt 0:00:06]} Rxf3+ {[%emt 0:00:09]} 36. Kxf3 {[%emt 0:00:04]} Rxd3+ {[%emt 0:00:05]} 37. Ke4 {[%emt 0:00:37]} Rb3 {[%emt 0:00:37]} 38. Rc5 {[%emt 0:00:33]} a4 {[%emt 0:00:51]} 39. Ra5 {[%emt 0:00:52]} Rxb6 {[%emt 0:00:01]} 40. Rxa4 {[%emt 0:00:08]} Ra6 {[%emt 0:00:27]} 41. Rb4 {[%emt 0:00:06]} Rxa3 {[%emt 0:00:06]} 42. f5+ {[%emt 0:00:42]} exf5+ {[%emt 0:00:06]} 43. Kf4 {[%emt 0:00:05]} Ra7 {[%emt 0:00:49]} 44. Rb6+ {[%emt 0:01:52]} f6 {[%emt 0:00:06]} 45. Rb3 {[%emt 0:00:15]} h5 {[%emt 0:02:07]} 46. Ra3 {[%emt 0:00:15]} Ra6 {[%emt 0:00:15]} 47. Rg3+ {[%emt 0:00:36]} Kf7 {[%emt 0:00:07]} 48. Rb3 {[%emt 0:00:05]} b6 {[%emt 0:00:28]} 49. Rh3 {[%emt 0:01:46]} Ra4+ {[%emt 0:01:10]} 50. Kxf5 {[%emt 0:00:06]} Rc4 {[%emt 0:00:03]} 51. Rh4 {[%emt 0:00:39]} Rc5+ {[%emt 0:00:20]} 52. Ke4 {[%emt 0:00:09]} b5 {[%emt 0:00:11]} 53. Rh1 {[%emt 0:00:10]} Kg6 {[%emt 0:00:32]} 54. Rg1+ {[%emt 0:00:24]} Rg5 {[%emt 0:00:06]} 55. Rb1 {[%emt 0:00:17]} h4 {[%emt 0:00:08]} 56. Rh1 {[%emt 0:00:14]} Kh5 {[%emt 0:00:06]} 57. Kf4 {[%emt 0:00:05]} b4 {[%emt 0:01:13]} 58. Rb1 {[%emt 0:00:05]} Rb5 {[%emt 0:00:25]} 59. Rb3 {[%emt 0:00:06]} f5 {[%emt 0:00:16]} 60. Kf3 {[%emt 0:00:43]} Kg5 {[%emt 0:00:09]} 61. Kg2 {[%emt 0:00:05]} Kg4 {[%emt 0:00:39]} 62. Kh2 {[%emt 0:00:06]} f4 {[%emt 0:02:04]} 63. Kg2 {[%emt 0:00:06]} h3+ {[%emt 0:00:41]} 64. Kh2 {[%emt 0:00:08]} f3 {[%emt 0:00:14]} 65. Kh1 {[%emt 0:00:34]} f2 {[%emt 0:00:40]} 66. Rg3+ {[%emt 0:00:04]} Kf4 {[%emt 0:00:06]} 0-1

[Event "SixDays Budapest IM-B June 2024"]
[Site "Budapest"]
[Date "2024.06.04"]
[Round "3.4"]
[White "Advaitt Srikant Koduri"]
[Black "Bashylina, Luisa"]
[Result "1/2-1/2"]
[ECO "A48"]
[WhiteElo "2066"]
[BlackElo "2250"]
[Annotator "RC"]
[PlyCount "47"]
[EventDate "2024.06.01"]
[EventType "tourn"]
[EventCountry "HUN"]
[SourceTitle "playchess.com"]
[Source "ChessBase"]
[SourceQuality "1"]
[TimeControl "5400+30"]

1. d4 {[%emt 0:00:02]} Nf6 {[%emt 0:00:04]} 2. Nf3 {[%emt 0:00:04]} g6 {[%emt 0:00:04]} 3. Bf4 {[%emt 0:00:04]} Bg7 {[%emt 0:00:07]} 4. e3 {[%emt 0:00:05]} d6 {[%emt 0:00:03]} 5. h3 {[%emt 0:00:03]} O-O {[%emt 0:00:04]} 6. Be2 {[%emt 0:00:03]} c5 {[%emt 0:00:04]} 7. c3 {[%emt 0:00:03]} Qb6 {[%emt 0:00:04]} 8. Qb3 {[%emt 0:01:00]} Be6 {[%emt 0:00:04]} 9. Qxb6 {[%emt 0:00:26]} axb6 {[%emt 0:00:05]} 10. a3 {[%emt 0:00:26]} Bd5 {[%emt 0:00:03]} 11. O-O {[%emt 0:01:42]} Bc6 {[%emt 0:00:07]} 12. Nbd2 {[%emt 0:05:08]} b5 {[%emt 0:01:25]} 13. Bd3 {[%emt 0:02:32]} Nbd7 {[%emt 0:05:32]} 14. e4 {[%emt 0:05:47]} Nb6 {[%emt 0:05:48]} 15. Be3 {[%emt 0:01:40]} Na4 {[%emt 0:08:52]} 16. Rab1 {[%emt 0:02:33]} Rfd8 {[%emt 0:06:17]} 17. Rfd1 {[%emt 0:06:59]} h6 {[%emt 0:12:08]} 18. Bc2 {[%emt 0:05:36]} c4 {[%emt 0:07:30]} 19. Re1 {[%emt 0:02:54]} e6 {[%emt 0:05:11]} 20. Kh2 {[%emt 0:04:37]} Nd7 {[%emt 0:03:43]} 21. g4 {[%emt 0:01:23]} Re8 {[%emt 0:07:09]} 22. Kg3 {[%emt 0:01:58]} Ndb6 {[%emt 0:01:45]} 23. h4 {[%emt 0:05:48]} e5 {[%emt 0:05:19]} 24. g5 {[%emt 0:07:34]} 1/2-1/2

[Event "SixDays Budapest IM-B June 2024"]
[Site "Budapest"]
[Date "2024.06.04"]
[Round "3.5"]
[White "Nagarkatte Vedant"]
[Black "Nanditha V"]
[Result "1-0"]
[ECO "B12"]
[WhiteElo "2272"]
[BlackElo "1852"]
[Annotator "RC"]
[PlyCount "83"]
[EventDate "2024.06.01"]
[EventType "tourn"]
[EventCountry "HUN"]
[SourceTitle "playchess.com"]
[Source "ChessBase"]
[SourceQuality "1"]
[TimeControl "5400+30"]

1. e4 {[%emt 0:03:33]} c6 {[%emt 0:02:04]} 2. d4 {[%emt 0:00:12]} d5 {[%emt 0:02:14]} 3. e5 {[%emt 0:00:04]} c5 {[%emt 0:00:51]} 4. c3 {[%emt 0:00:06]} Nc6 {[%emt 0:01:41]} 5. Be2 {[%emt 0:00:04]} e6 {[%emt 0:03:51]} 6. Nf3 {[%emt 0:00:23]} Be7 {[%emt 0:04:56]} 7. O-O {[%emt 0:00:29]} cxd4 {[%emt 0:02:33]} 8. cxd4 {[%emt 0:00:42]} Nh6 {[%emt 0:00:20]} 9. Bxh6 {[%emt 0:02:51]} gxh6 {[%emt 0:00:05]} 10. Qd2 {[%emt 0:00:03]} Bg5 {[%emt 0:03:41]} 11. Nxg5 {[%emt 0:00:16]} hxg5 {[%emt 0:06:17]} 12. Nc3 {[%emt 0:01:39]} a6 {[%emt 0:00:36]} 13. Bh5 {[%emt 0:06:15]} Rg8 {[%emt 0:11:46]} 14. h3 {[%emt 0:00:17]} Ne7 {[%emt 0:04:12]} 15. Nd1 {[%emt 0:12:58]} Ng6 {[%emt 0:10:46]} 16. g3 {[%emt 0:09:33]} Ne7 {[%emt 0:09:31]} 17. Ne3 {[%emt 0:02:02]} Rg7 {[%emt 0:01:18]} 18. Ng4 {[%emt 0:04:46]} Bd7 {[%emt 0:03:55]} 19. Nf6+ {[%emt 0:05:43]} Kf8 {[%emt 0:00:08]} 20. Qb4 {[%emt 0:00:11]} a5 {[%emt 0:00:49]} 21. Qa3 {[%emt 0:02:06]} b5 {[%emt 0:07:32]} 22. Rfc1 {[%emt 0:00:50]} b4 {[%emt 0:00:15]} 23. Qd3 {[%emt 0:00:05]} h6 {[%emt 0:00:49]} 24. Rc5 {[%emt 0:00:14]} Ng8 {[%emt 0:00:53]} 25. Ng4 {[%emt 0:07:24]} f5 {[%emt 0:01:08]} 26. exf6 {[%emt 0:00:42]} Nxf6 {[%emt 0:00:20]} 27. Qf3 {[%emt 0:00:07]} Rf7 {[%emt 0:02:27]} 28. Bxf7 {[%emt 0:01:17]} Kxf7 {[%emt 0:00:02]} 29. Rac1 {[%emt 0:02:14]} Ra7 {[%emt 0:00:21]} 30. Nxf6 {[%emt 0:01:16]} Qxf6 {[%emt 0:00:09]} 31. Qxf6+ {[%emt 0:00:03]} Kxf6 {[%emt 0:00:05]} 32. Rc7 {[%emt 0:00:03]} Rxc7 {[%emt 0:00:16]} 33. Rxc7 {[%emt 0:00:05]} Be8 {[%emt 0:04:50]} 34. Ra7 {[%emt 0:00:24]} Kf5 {[%emt 0:03:18]} 35. f3 {[%emt 0:00:16]} a4 {[%emt 0:00:31]} 36. Rb7 {[%emt 0:00:21]} h5 {[%emt 0:00:36]} 37. g4+ {[%emt 0:00:28]} hxg4 {[%emt 0:00:07]} 38. hxg4+ {[%emt 0:00:04]} Kf4 {[%emt 0:00:11]} 39. Kf2 {[%emt 0:00:04]} e5 {[%emt 0:00:27]} 40. Re7 {[%emt 0:00:25]} b3 {[%emt 0:01:18]} 41. Rxe5 {[%emt 0:00:18]} Bg6 {[%emt 0:00:17]} 42. Re6 {[%emt 0:00:09]} 1-0

[Event "SixDays Budapest IM-B June 2024"]
[Site "Budapest"]
[Date "2024.06.05"]
[Round "4.1"]
[White "Horvath, David"]
[Black "Nanditha V"]
[Result "1-0"]
[ECO "A15"]
[WhiteElo "2313"]
[BlackElo "1852"]
[Annotator "RC"]
[PlyCount "151"]
[EventDate "2024.06.01"]
[EventType "tourn"]
[EventCountry "HUN"]
[SourceTitle "playchess.com"]
[Source "ChessBase"]
[SourceQuality "1"]
[TimeControl "5400+30"]

1. c4 {[%emt 0:00:06]} Nf6 {[%emt 0:01:08]} 2. Nf3 {[%emt 0:00:19]} g6 {[%emt 0:01:29]} 3. b3 {[%emt 0:03:44]} Bg7 {[%emt 0:01:28]} 4. Bb2 {[%emt 0:00:06]} O-O {[%emt 0:01:36]} 5. g3 {[%emt 0:00:05]} d6 {[%emt 0:01:10]} 6. d4 {[%emt 0:01:09]} c5 {[%emt 0:07:16]} 7. Bg2 {[%emt 0:04:30]} Nc6 {[%emt 0:05:08]} 8. d5 {[%emt 0:17:44]} Nb4 {[%emt 0:04:15]} 9. O-O {[%emt 0:10:59]} e5 {[%emt 0:09:20]} 10. dxe6 {[%emt 0:20:09]} fxe6 {[%emt 0:05:39]} 11. e3 {[%emt 0:06:02]} Qe7 {[%emt 0:04:42]} 12. Qe2 {[%emt 0:02:26]} Bd7 {[%emt 0:02:56]} 13. Nc3 {[%emt 0:00:55]} Bc6 {[%emt 0:01:51]} 14. a3 {[%emt 0:04:19]} Na6 {[%emt 0:05:56]} 15. Rad1 {[%emt 0:00:25]} Ne4 {[%emt 0:04:42]} 16. Nxe4 {[%emt 0:03:26]} Bxe4 {[%emt 0:03:54]} 17. Bxg7 {[%emt 0:00:42]} Kxg7 {[%emt 0:00:17]} 18. Nd2 {[%emt 0:02:45]} Bxg2 {[%emt 0:01:38]} 19. Kxg2 {[%emt 0:00:02]} d5 {[%emt 0:09:34]} 20. e4 {[%emt 0:03:38]} d4 {[%emt 0:00:43]} 21. e5 {[%emt 0:01:02]} Rad8 {[%emt 0:05:00]} 22. Ne4 {[%emt 0:02:30]} Nb8 {[%emt 0:00:40]} 23. f4 {[%emt 0:01:12]} Nc6 {[%emt 0:01:39]} 24. Rd3 {[%emt 0:02:14]} b6 {[%emt 0:01:33]} 25. g4 {[%emt 0:04:15]} Qb7 {[%emt 0:03:41]} 26. Kg1 {[%emt 0:01:01]} h6 {[%emt 0:04:04]} 27. h4 {[%emt 0:03:00]} Qe7 {[%emt 0:01:30]} 28. Nf6 {[%emt 0:01:03]} Nb8 {[%emt 0:02:00]} 29. h5 {[%emt 0:01:48]} Rxf6 {[%emt 0:01:38]} 30. exf6+ {[%emt 0:00:08]} Qxf6 {[%emt 0:00:08]} 31. hxg6 {[%emt 0:01:05]} Nd7 {[%emt 0:01:41]} 32. Qe4 {[%emt 0:01:26]} Re8 {[%emt 0:01:56]} 33. Rh3 {[%emt 0:01:09]} Qxg6 {[%emt 0:01:31]} 34. Qxg6+ {[%emt 0:00:38]} Kxg6 {[%emt 0:00:00]} 35. Kg2 {[%emt 0:00:25]} Nf6 {[%emt 0:00:27]} 36. Kf3 {[%emt 0:01:11]} e5 {[%emt 0:00:25]} 37. fxe5 {[%emt 0:00:24]} Rxe5 {[%emt 0:00:04]} 38. Rg3 {[%emt 0:00:48]} Ne4 {[%emt 0:02:50]} 39. Re1 {[%emt 0:00:32]} Ng5+ {[%emt 0:00:34]} 40. Kf2 {[%emt 0:00:06]} Ne4+ {[%emt 0:01:02]} 41. Kg2 {[%emt 0:00:13]} Kf6 {[%emt 0:00:34]} 42. Rh3 {[%emt 0:00:14]} Kg6 {[%emt 0:01:12]} 43. b4 {[%emt 0:00:49]} b5 {[%emt 0:01:10]} 44. bxc5 {[%emt 0:01:04]} bxc4 {[%emt 0:00:03]} 45. c6 {[%emt 0:00:24]} c3 {[%emt 0:00:39]} 46. Rd3 {[%emt 0:00:44]} Rc5 {[%emt 0:01:36]} 47. Rxd4 {[%emt 0:00:27]} Nf6 {[%emt 0:00:57]} 48. Rc1 {[%emt 0:00:34]} Rxc6 {[%emt 0:00:20]} 49. Rc2 {[%emt 0:00:26]} Rc5 {[%emt 0:00:36]} 50. Kf3 {[%emt 0:00:10]} h5 {[%emt 0:00:30]} 51. gxh5+ {[%emt 0:00:13]} Rxh5 {[%emt 0:00:06]} 52. Ke2 {[%emt 0:00:39]} Nd5 {[%emt 0:00:57]} 53. Kd3 {[%emt 0:00:41]} Rh3+ {[%emt 0:00:31]} 54. Ke4 {[%emt 0:00:21]} Nf6+ {[%emt 0:00:15]} 55. Ke5 {[%emt 0:00:22]} Re3+ {[%emt 0:00:13]} 56. Kd6 {[%emt 0:00:31]} Ne4+ {[%emt 0:00:54]} 57. Kd5 {[%emt 0:00:28]} Nd2 {[%emt 0:00:28]} 58. Ra4 {[%emt 0:00:29]} Rd3+ {[%emt 0:00:38]} 59. Kc5 {[%emt 0:00:43]} a5 {[%emt 0:00:36]} 60. Kb6 {[%emt 0:00:32]} Nb3 {[%emt 0:00:28]} 61. Rc4 {[%emt 0:00:29]} Rd6+ {[%emt 0:00:28]} 62. Kc7 {[%emt 0:00:21]} Rd5 {[%emt 0:00:40]} 63. R2xc3 {[%emt 0:00:20]} Nd4 {[%emt 0:00:04]} 64. Kb6 {[%emt 0:00:31]} Ne6 {[%emt 0:00:51]} 65. Ra4 {[%emt 0:00:31]} Kf6 {[%emt 0:00:31]} 66. Rxa5 {[%emt 0:00:06]} Rd8 {[%emt 0:00:08]} 67. Rh5 {[%emt 0:00:42]} Rb8+ {[%emt 0:00:19]} 68. Ka7 {[%emt 0:00:09]} Re8 {[%emt 0:00:45]} 69. Rc6 {[%emt 0:00:22]} Ke7 {[%emt 0:00:35]} 70. Re5 {[%emt 0:00:12]} Kd7 {[%emt 0:00:13]} 71. Rexe6 {[%emt 0:00:14]} Rxe6 {[%emt 0:00:17]} 72. Rxe6 {[%emt 0:00:01]} Kxe6 {[%emt 0:00:01]} 73. a4 {[%emt 0:00:09]} Kd6 {[%emt 0:00:27]} 74. Kb6 {[%emt 0:00:03]} Kd7 {[%emt 0:00:02]} 75. Kb7 {[%emt 0:00:01]} Kd6 {[%emt 0:00:04]} 76. a5 {[%emt 0:00:01]} 1-0

[Event "SixDays Budapest IM-B June 2024"]
[Site "Budapest"]
[Date "2024.06.05"]
[Round "4.2"]
[White "Bashylina, Luisa"]
[Black "Nagarkatte Vedant"]
[Result "0-1"]
[ECO "D35"]
[WhiteElo "2250"]
[BlackElo "2272"]
[Annotator "RC"]
[PlyCount "72"]
[EventDate "2024.06.01"]
[EventType "tourn"]
[EventCountry "HUN"]
[SourceTitle "playchess.com"]
[Source "ChessBase"]
[SourceQuality "1"]
[TimeControl "5400+30"]

1. d4 {[%emt 0:00:02]} d5 {[%emt 0:05:33]} 2. c4 {[%emt 0:00:03]} e6 {[%emt 0:00:03]} 3. Nc3 {[%emt 0:00:03]} Nf6 {[%emt 0:00:03]} 4. cxd5 {[%emt 0:00:04]} exd5 {[%emt 0:00:04]} 5. Bg5 {[%emt 0:00:08]} c6 {[%emt 0:00:01]} 6. e3 {[%emt 0:00:06]} h6 {[%emt 0:00:04]} 7. Bh4 {[%emt 0:00:11]} Be7 {[%emt 0:00:03]} 8. Bd3 {[%emt 0:00:03]} O-O {[%emt 0:00:05]} 9. Nge2 {[%emt 0:00:07]} Ne8 {[%emt 0:00:05]} 10. Bxe7 {[%emt 0:04:02]} Qxe7 {[%emt 0:00:02]} 11. O-O {[%emt 0:00:21]} Nd6 {[%emt 0:00:04]} 12. Ng3 {[%emt 0:04:10]} Qg5 {[%emt 0:11:18]} 13. Qc2 {[%emt 0:10:23]} h5 {[%emt 0:26:14]} 14. f4 {[%emt 0:16:35]} Qg4 {[%emt 0:01:32]} 15. f5 {[%emt 0:08:01]} h4 {[%emt 0:03:46]} 16. Rf4 {[%emt 0:01:18]} Qg5 {[%emt 0:00:41]} 17. Nf1 {[%emt 0:00:30]} Nd7 {[%emt 0:01:50]} 18. Nd2 {[%emt 0:06:43]} h3 {[%emt 0:24:32]} 19. g4 {[%emt 0:06:14]} Re8 {[%emt 0:10:54]} 20. Nf3 {[%emt 0:03:34]} Qd8 {[%emt 0:00:13]} 21. Re1 {[%emt 0:04:30]} Nf6 {[%emt 0:08:25]} 22. g5 {[%emt 0:07:25]} Nfe4 {[%emt 0:01:00]} 23. Nxe4 {[%emt 0:01:37]} dxe4 {[%emt 0:00:27]} 24. Bxe4 {[%emt 0:00:20]} Rxe4 {[%emt 0:00:06]} 25. g6 {[%emt 0:10:05]} Rxf4 {[%emt 0:03:24]} 26. gxf7+ {[%emt 0:02:02]} Kf8 {[%emt 0:00:44]} 27. exf4 {[%emt 0:00:14]} Bxf5 {[%emt 0:00:45]} 28. Qc5 {[%emt 0:02:20]} Qf6 {[%emt 0:00:41]} 29. Ng5 {[%emt 0:03:20]} Rd8 {[%emt 0:00:45]} 30. Re5 {[%emt 0:00:35]} Qg6 {[%emt 0:01:06]} 31. d5 {[%emt 0:01:39]} b6 {[%emt 0:00:52]} 32. Qxc6 {[%emt 0:01:13]} Bd7 {[%emt 0:00:26]} 33. Qc7 {[%emt 0:03:05]} Nxf7 {[%emt 0:00:06]} 34. Kf2 {[%emt 0:00:57]} Qd6 {[%emt 0:00:24]} 35. Ne6+ {[%emt 0:03:19]} Bxe6 {[%emt 0:00:11]} 36. Qxd6+ {[%emt 0:00:47]} Rxd6 {[%emt 0:00:05]} 0-1

[Event "SixDays Budapest IM-B June 2024"]
[Site "Budapest"]
[Date "2024.06.05"]
[Round "4.3"]
[White "Van Zyl-Rudd, Jack"]
[Black "Advaitt Srikant Koduri"]
[Result "1/2-1/2"]
[ECO "D10"]
[WhiteElo "2292"]
[BlackElo "2066"]
[Annotator "RC"]
[PlyCount "67"]
[EventDate "2024.06.01"]
[EventType "tourn"]
[EventCountry "HUN"]
[SourceTitle "playchess.com"]
[Source "ChessBase"]
[SourceQuality "1"]
[TimeControl "5400+30"]

1. d4 {[%emt 0:10:25]} d5 {[%emt 0:00:10]} 2. c4 {[%emt 0:00:09]} c6 {[%emt 0:00:06]} 3. cxd5 {[%emt 0:00:27]} cxd5 {[%emt 0:00:09]} 4. Bg5 {[%emt 0:00:03]} Nc6 {[%emt 0:00:48]} 5. Nc3 {[%emt 0:00:05]} Nf6 {[%emt 0:00:32]} 6. Bxf6 {[%emt 0:00:07]} gxf6 {[%emt 0:00:18]} 7. e3 {[%emt 0:00:07]} e6 {[%emt 0:01:12]} 8. Be2 {[%emt 0:00:18]} Qb6 {[%emt 0:02:27]} 9. Rb1 {[%emt 0:04:07]} Bd7 {[%emt 0:02:26]} 10. Nf3 {[%emt 0:00:21]} Bd6 {[%emt 0:04:40]} 11. O-O {[%emt 0:00:15]} f5 {[%emt 0:03:45]} 12. a3 {[%emt 0:29:27]} Rc8 {[%emt 0:04:35]} 13. Na4 {[%emt 0:05:42]} Qd8 {[%emt 0:21:39]} 14. Rc1 {[%emt 0:02:28]} O-O {[%emt 0:00:37]} 15. Nc5 {[%emt 0:00:42]} Bxc5 {[%emt 0:03:42]} 16. Rxc5 {[%emt 0:00:14]} b6 {[%emt 0:03:09]} 17. Rc1 {[%emt 0:02:36]} Na5 {[%emt 0:01:23]} 18. Rxc8 {[%emt 0:16:10]} Bxc8 {[%emt 0:08:20]} 19. Qc2 {[%emt 0:10:31]} Bb7 {[%emt 0:01:11]} 20. b4 {[%emt 0:02:31]} Nc6 {[%emt 0:01:13]} 21. Rc1 {[%emt 0:09:16]} Qb8 {[%emt 0:06:43]} 22. g3 {[%emt 0:00:31]} Rc8 {[%emt 0:00:20]} 23. Qa4 {[%emt 0:02:24]} Kg7 {[%emt 0:01:47]} 24. Kg2 {[%emt 0:00:09]} Kf6 {[%emt 0:01:11]} 25. h4 {[%emt 0:00:34]} h6 {[%emt 0:00:59]} 26. Bb5 {[%emt 0:01:34]} Qa8 {[%emt 0:04:19]} 27. Ba6 {[%emt 0:01:55]} Kg7 {[%emt 0:04:30]} 28. Rc2 {[%emt 0:00:26]} Qb8 {[%emt 0:03:01]} 29. Bb5 {[%emt 0:00:27]} Qa8 {[%emt 0:01:47]} 30. Ba6 {[%emt 0:00:46]} Qb8 {[%emt 0:01:17]} 31. Qb5 {[%emt 0:00:28]} Rc7 {[%emt 0:01:22]} 32. Bxb7 {[%emt 0:00:32]} Qxb7 {[%emt 0:00:08]} 33. Qd3 {[%emt 0:00:32]} Qc8 {[%emt 0:00:45]} 34. Qb5 {[%emt 0:00:38]} 1/2-1/2